bitfinex/quotes_SOLUSD_20240623
["timestamp","ask_amount","ask_price","bid_price","bid_amount"]
[1719108065860,6.49,135.19,135.13,100.0]
[1719108066067,13.8872,135.19,135.14,6.49]
[1719108066785,6.49,135.18,135.13,6.49]
[1719108067190,13.8872,135.19,135.14,6.49]
[1719108067871,23.2335,135.18,135.11,100.0]
[1719108068274,23.2335,135.18,135.14,6.49]
[1719108068479,15.8358,135.18,135.14,6.49]
[1719108069377,15.8358,135.18,135.11,100.0]
[1719108069585,14.0581,135.17,135.11,100.0]
[1719108069772,14.0581,135.17,135.12,6.49]
[1719108070786,6.66,135.17,135.12,6.49]
[1719108070985,6.49,135.16,135.09,100.0]
[1719108071295,13.8892,135.15,135.07,100.0]
[1719108071491,13.8892,135.15,135.09,6.49]
[1719108071894,13.8892,135.15,135.1,6.49]
[1719108072099,6.49,135.15,135.07,100.0]
[1719108072298,6.49,135.15,135.09,6.49]
[1719108072592,13.8893,135.15,135.09,6.49]
[1719108074188,6.49,135.15,135.09,6.49]
[1719108074886,15.8358,135.14,135.09,6.49]
[1719108075088,0.34,135.13,135.09,6.49]
[1719108075791,6.83,135.13,135.08,6.49]
[1719108076476,15.8358,135.14,135.07,100.0]
[1719108076671,15.8358,135.14,135.1,6.49]
[1719108076881,15.8358,135.14,135.09,6.49]
[1719108077778,22.3258,135.14,135.09,6.49]
[1719108078395,15.8358,135.14,135.12,6.49]
[1719108078599,22.1136,135.17,135.13,6.49]
[1719108079785,15.8358,135.17,135.14,6.49]
[1719108080294,23.2338,135.17,135.13,6.49]
[1719108081701,23.2338,135.17,135.12,6.49]
[1719108081897,29.7238,135.17,135.12,6.49]
[1719108082097,14.2289,135.16,135.11,6.49]
[1719108082677,7.3992,135.15,135.09,100.0]
[1719108082891,14.2288,135.16,135.11,6.49]
[1719108083791,7.7388,135.16,135.12,6.49]
[1719108085815,7.7388,135.16,135.1,1.47967357]
[1719108085816,7.4001,135.14,135.1,6.49]
[1719108085988,7.4001,135.14,135.07,100.0]
[1719108086184,7.4001,135.14,135.09,6.49]
[1719108086699,20.1308,135.15,135.1,6.49]
[1719108086911,0.17,135.14,135.1,6.49]
[1719108087811,0.17,135.14,135.07,100.0]
[1719108088011,0.17,135.14,135.1,6.49]
[1719108090302,0.17,135.14,135.11,6.49]
[1719108091003,23.2343,135.17,135.11,100.0]
[1719108091305,23.2343,135.17,135.13,6.49]
[1719108092304,15.8358,135.17,135.13,6.49]
[1719108092509,15.8358,135.17,135.14,6.49]
[1719108093304,23.2342,135.17,135.14,6.49]
[1719108093624,23.2342,135.17,135.12,6.49]
[1719108093917,29.7242,135.17,135.12,6.49]
[1719108094812,23.2342,135.17,135.12,6.49]
[1719108095808,15.8358,135.17,135.12,6.49]
[1719108098726,15.8358,135.17,135.11,100.0]
[1719108099025,15.8102,135.2,135.15,6.49]
[1719108099308,15.8102,135.2,135.17,6.49]
[1719108100801,267.6367,135.22,135.15,100.0]
[1719108101006,267.6367,135.22,135.18,6.49]
[1719108101698,7.3962,135.21,135.17,6.49]
[1719108102118,7.3962,135.21,135.15,100.0]
[1719108102323,7.3962,135.21,135.16,6.49]
[1719108103212,20.127,135.22,135.16,6.49]
[1719108105302,13.637,135.22,135.16,6.49]
[1719108105501,20.127,135.22,135.16,6.49]
[1719108105801,7.736,135.21,135.16,6.49]
[1719108106003,14.226,135.21,135.16,6.49]
[1719108107098,6.83,135.21,135.16,6.49]
[1719108107311,0.34,135.21,135.16,6.49]
[1719108107614,6.83,135.21,135.16,6.49]
[1719108108522,22.6445,135.18,135.13,6.49]
[1719108109228,16.1545,135.18,135.14,6.49]
[1719108110220,16.1545,135.18,135.1,25.96]
[1719108110221,22.6445,135.18,135.13,6.49]
[1719108110523,0.17,135.17,135.13,6.49]
[1719108111821,0.17,135.17,135.14,6.49]
[1719108112828,0.17,135.17,135.09,100.0]
[1719108113030,14.2281,135.17,135.12,6.49]
[1719108113406,6.83,135.17,135.12,6.49]
[1719108115310,13.2868,135.17,135.09,100.0]
[1719108115503,13.2868,135.17,135.12,6.49]
[1719108117425,13.2868,135.17,135.09,100.0]
[1719108117426,6.49,135.16,135.11,6.49]
[1719108117835,14.1951,135.17,135.11,6.49]
[1719108118038,6.49,135.16,135.11,6.49]
[1719108120035,6.49,135.16,135.07,122.315]
[1719108120342,6.49,135.14,135.09,6.49]
[1719108120652,0.34,135.15,135.11,6.49]
[1719108120824,14.2286,135.16,135.11,6.49]
[1719108121145,6.49,135.15,135.07,122.315]
[1719108121330,0.17,135.14,135.1,6.49]
[1719108121537,0.17,135.14,135.07,122.315]
[1719108121841,0.17,135.14,135.1,6.49]
[1719108125463,0.17,135.14,135.07,122.315]
[1719108125756,0.17,135.14,135.1,6.49]
[1719108125922,6.49,135.15,135.1,6.49]
[1719108126239,6.4568,135.17,135.13,6.49]
[1719108127315,6.4568,135.17,135.1,100.0]
[1719108127514,6.4568,135.17,135.12,6.49]
[1719108127746,0.34,135.16,135.12,6.49]
[1719108128322,0.34,135.16,135.11,6.49]
[1719108129829,0.34,135.16,135.12,6.49]
[1719108131025,7.7386,135.16,135.12,6.49]
[1719108131225,7.3993,135.15,135.08,100.0]
[1719108131426,30.2331,135.14,135.06,100.0]
[1719108131633,30.0631,135.14,135.09,6.49]
[1719108131819,6.66,135.13,135.08,6.49]
[1719108132434,6.66,135.13,135.06,100.0]
[1719108132435,7.4008,135.12,135.06,6.49]
[1719108132739,6.49,135.12,135.06,6.49]
[1719108133246,14.0607,135.13,135.07,6.49]
[1719108133429,0.17,135.12,135.07,6.49]
[1719108133839,0.17,135.12,135.08,6.49]
[1719108135336,0.17,135.12,135.07,6.49]
[1719108135734,14.0608,135.12,135.07,6.49]
[1719108136365,14.0608,135.12,135.04,122.574]
[1719108136529,0.17,135.11,135.07,6.49]
[1719108137435,0.17,135.12,135.08,6.49]
[1719108137623,6.83,135.13,135.08,6.49]
[1719108137827,0.34,135.13,135.09,6.49]
[1719108139452,29.8583,135.17,135.11,6.49]
[1719108139643,22.4602,135.17,135.13,6.49]
[1719108140150,22.4602,135.17,135.1,106.49]
[1719108140354,22.4602,135.17,135.1,125.96]
[1719108141239,22.4602,135.17,135.13,6.49]
[1719108142557,29.8583,135.17,135.1,106.49]
[1719108142755,36.3483,135.17,135.12,6.49]
[1719108143345,14.0587,135.16,135.11,6.49]
[1719108143668,14.0592,135.15,135.1,6.49]
[1719108143837,6.49,135.14,135.09,6.49]
[1719108144034,13.8899,135.14,135.06,100.0]
[1719108144343,13.8899,135.14,135.09,6.49]
[1719108145166,6.49,135.14,135.09,6.49]
[1719108149346,14.0594,135.15,135.1,6.49]
[1719108149558,0.17,135.14,135.1,6.49]
[1719108150544,7.5697,135.14,135.1,6.49]
[1719108152649,0.17,135.14,135.06,100.0]
[1719108152964,7.4008,135.12,135.08,6.49]
[1719108153149,13.8904,135.13,135.08,6.49]
[1719108153547,13.8904,135.13,135.06,100.0]
[1719108153748,13.8904,135.13,135.08,6.49]
[1719108153949,23.9844,135.12,135.08,6.49]
[1719108154351,30.4744,135.12,135.06,100.0]
[1719108154551,30.4744,135.12,135.07,6.49]
[1719108154552,7.4015,135.11,135.07,6.49]
[1719108154861,13.8915,135.11,135.06,6.49]
[1719108156765,6.49,135.11,135.06,6.49]
[1719108157145,6.49,135.09,135.04,6.49]
[1719108157766,14.2323,135.1,135.05,6.49]
[1719108157938,6.83,135.1,135.05,6.49]
[1719108158542,6.66,135.1,135.05,6.49]
[1719108158775,36.4519,135.12,135.07,6.49]
[1719108158976,0.34,135.11,135.07,6.49]
[1719108159271,7.7414,135.11,135.07,6.49]
[1719108159444,16.4136,135.12,135.08,100.0]
[1719108159648,6.1473,135.16,135.08,100.0]
[1719108159649,29.0509,135.16,135.11,6.49]
[1719108160675,36.4497,135.16,135.11,6.49]
[1719108161681,7.3992,135.15,135.11,6.49]
[1719108162176,6.49,135.15,135.1,6.49]
[1719108162364,6.49,135.15,135.09,6.49]
[1719108162365,7.4002,135.13,135.09,6.49]
[1719108163677,7.4008,135.12,135.09,6.49]
[1719108163849,7.4008,135.12,135.08,6.49]
[1719108164378,7.4008,135.12,135.06,100.0]
[1719108164593,7.4008,135.12,135.04,100.0]
[1719108164876,7.4008,135.12,135.08,6.49]
[1719108165256,6.49,135.12,135.07,6.49]
[1719108165454,15.161,135.11,135.07,6.49]
[1719108165977,15.161,135.11,135.06,6.49]
[1719108166475,15.161,135.11,135.07,6.49]
[1719108169472,15.161,135.11,135.06,100.0]
[1719108169647,15.161,135.11,135.07,6.49]
[1719108175682,15.161,135.11,135.06,100.0]
[1719108175877,15.161,135.11,135.04,100.0]
[1719108176076,22.5624,135.11,135.07,6.49]
[1719108176378,22.5624,135.11,135.04,100.0]
[1719108176379,29.0524,135.11,135.06,6.49]
[1719108177179,21.651,135.11,135.06,6.49]
[1719108177562,21.651,135.11,135.07,6.49]
[1719108178380,21.651,135.11,135.04,100.0]
[1719108178683,0.17,135.1,135.04,100.0]
[1719108178882,7.742,135.1,135.05,6.49]
[1719108179258,0.34,135.1,135.05,6.49]
[1719108179779,0.30298764,135.1,135.05,6.49]
[1719108180570,0.30298764,135.1,135.05,7.96853]
[1719108180776,14.19488764,135.1,135.05,7.96853]
[1719108180978,14.19488764,135.1,135.05,6.49]
[1719108181780,6.79298764,135.1,135.05,6.49]
[1719108183183,0.17,135.1,135.05,6.49]
[1719108183373,21.7703,135.11,135.07,6.49]
[1719108185274,29.1717,135.11,135.07,6.49]
[1719108186565,29.1717,135.11,135.06,7.96747208]
[1719108189169,29.1717,135.11,135.01,106.4968]
[1719108189170,7.4032,135.08,135.02,100.0]
[1719108189367,6.49,135.08,135.02,100.0]
[1719108189593,6.49,135.08,135.03,6.49]
[1719108192099,6.49,135.08,135.0,100.0]
[1719108192294,6.49,135.08,135.03,6.49]
[1719108193290,21.9897,135.07,135.0,100.0]
[1719108193484,6.66,135.06,135.0,100.0]
[1719108193683,6.66,135.06,135.0,106.49]
[1719108194267,6.49,135.05,135.0,6.49]
[1719108194473,6.49,135.05,134.98,100.0]
[1719108194685,6.83,135.04,134.99,6.49]
[1719108194891,0.34,135.04,135.0,7.96803491]
[1719108195191,0.34,135.04,134.96,125.96]
[1719108195192,14.2352,135.04,134.99,1.50435569]
[1719108195497,13.8959,135.03,134.98,6.49]
[1719108195689,13.8959,135.03,134.96,100.0]
[1719108195871,0.17,135.02,134.98,6.49]
[1719108198185,15.4997,135.03,134.98,6.49]
[1719108198390,15.4997,135.03,134.96,100.0]
[1719108198391,15.4997,135.03,135.0,6.49]
[1719108199885,15.4997,135.03,134.96,125.96]
[1719108200283,15.4997,135.03,134.96,225.96]
[1719108200482,15.4997,135.06,134.99,100.0]
[1719108200700,15.4997,135.06,135.03,6.49]
[1719108201174,22.9041,135.06,135.02,6.49]
[1719108201679,7.4048,135.05,135.01,6.49]
[1719108201882,13.8956,135.04,134.99,6.49]
[1719108202397,7.4057,135.03,134.99,6.49]
[1719108202787,7.4057,135.03,134.97,100.0]
[1719108202788,13.8957,135.03,134.98,6.49]
[1719108203410,7.5763,135.02,134.95,100.0]
[1719108203578,7.5763,135.02,134.98,6.49]
[1719108203779,14.0663,135.02,134.97,6.49]
[1719108203979,14.0663,135.02,134.95,100.0]
[1719108204285,14.0663,135.02,134.97,6.49]
[1719108205277,6.66,135.02,134.97,6.49]
[1719108206099,7.5754,135.04,134.98,6.49]
[1719108206279,6.66,135.03,134.98,6.49]
[1719108206481,6.83,135.03,134.98,6.49]
[1719108206875,0.34,135.03,134.99,6.49]
[1719108207106,7.7457,135.03,134.99,6.49]
[1719108207405,14.2357,135.03,134.98,6.49]
[1719108208709,14.2357,135.03,134.97,100.0]
[1719108209005,14.2357,135.03,134.98,6.49]
[1719108209378,14.2357,135.03,134.97,100.0]
[1719108209582,14.2357,135.03,134.98,6.49]
[1719108211012,13.8964,135.02,134.95,100.0]
[1719108211198,29.3607,135.02,134.97,6.49]
[1719108212808,29.3607,135.02,134.95,100.0]
[1719108212809,35.5458,135.02,134.95,100.0]
[1719108212983,6.83,135.01,134.95,100.0]
[1719108213179,6.83,135.01,134.96,6.49]
[1719108213791,6.83,135.01,134.93,116.556]
[1719108214089,6.83,135.01,134.96,6.49]
[1719108214811,6.49,135.0,134.95,6.49]
[1719108218211,6.83,135.01,134.96,6.49]
[1719108219800,6.49,135.0,134.95,6.49]
[1719108219997,6.49,135.0,134.96,1.26746209]
[1719108223284,0.17,134.99,134.91,100.0]
[1719108223486,6.49,134.97,134.91,100.0]
[1719108223791,6.49,134.97,134.92,6.49]
[1719108224209,6.49,134.97,134.93,6.49]
[1719108224418,21.526,134.98,134.91,100.0]
[1719108224607,21.526,134.98,134.93,6.49]
[1719108224810,0.17,134.97,134.91,100.0]
[1719108224988,0.17,134.97,134.93,6.49]
[1719108225694,6.66,134.97,134.92,6.49]
[1719108225904,14.0691,134.97,134.92,6.49]
[1719108226114,20.1956,134.97,134.92,6.49]
[1719108226288,14.0697,134.96,134.89,100.0]
[1719108226604,12.7865,134.97,134.92,6.49]
[1719108227003,12.7865,134.97,134.93,6.49]
[1719108227004,6.2965,134.97,134.93,6.49]
[1719108227208,6.2965,134.97,134.91,100.0]
[1719108227209,12.7865,134.97,134.91,100.0]
[1719108227411,12.7865,134.97,134.92,6.49]
[1719108228109,6.2965,134.97,134.92,6.49]
[1719108228317,12.7865,134.97,134.92,6.49]
[1719108229613,20.1956,134.97,134.92,6.49]
[1719108231606,20.1956,134.97,134.91,100.0]
[1719108231806,20.1956,134.97,134.92,6.49]
[1719108233523,20.1956,134.97,134.91,100.0]
[1719108233822,20.1956,134.97,134.92,6.49]
[1719108234817,20.1957,134.97,134.92,6.49]
[1719108235297,15.036,134.98,134.94,6.49]
[1719108235503,15.036,134.98,134.95,6.49]
[1719108236406,6.1265,135.0,134.96,6.49]
[1719108236610,28.9329,135.01,134.96,6.49]
[1719108236808,7.4074,135.0,134.96,6.49]
[1719108238624,28.933,135.01,134.96,6.49]
[1719108239706,22.443,135.01,134.96,6.49]
[1719108239904,28.933,135.01,134.96,6.49]
[1719108241620,28.933,135.01,134.98,6.49]
[1719108241621,15.036,135.01,134.98,6.49]
[1719108241822,15.036,135.01,134.99,6.49]
[1719108243417,15.274,135.04,135.0,6.49]
[1719108243621,15.274,135.04,135.01,6.49]
[1719108243926,15.274,135.04,135.02,6.49]
[1719108244105,6.2643,135.06,135.02,6.49]
[1719108244309,15.274,135.07,135.02,6.49]
[1719108244510,29.1679,135.07,135.02,6.49]
[1719108244917,7.4042,135.06,134.99,100.0]
[1719108245115,7.4042,135.06,135.02,6.49]
[1719108245632,7.4042,135.06,135.01,6.49]
[1719108245825,7.4042,135.06,135.01,106.49]
[1719108246124,21.764,135.07,135.02,6.49]
[1719108246324,29.1677,135.07,135.02,6.49]
[1719108246701,7.4043,135.06,135.02,6.49]
[1719108246905,6.49,135.05,134.97,100.0]
[1719108247119,6.49,135.04,135.0,6.49]
[1719108247312,7.4048,135.05,135.01,6.49]
[1719108248127,22.6778,135.07,135.01,100.0]
[1719108248314,22.6778,135.07,135.03,6.49]
[1719108249738,7.4043,135.06,134.99,100.0]
[1719108250036,6.49,135.05,135.0,6.49]
[1719108250238,21.3079,135.05,134.99,6.49]
[1719108250451,7.4052,135.04,134.99,6.49]
[1719108250610,13.8952,135.04,134.99,6.49]
[1719108251543,21.3078,135.05,134.99,6.49]
[1719108251749,13.8948,135.05,135.0,6.49]
[1719108252520,14.2343,135.06,135.01,6.49]
[1719108254238,7.4047,135.05,135.01,6.49]
[1719108255436,7.4053,135.04,135.01,6.49]
[1719108255730,7.4053,135.04,135.0,6.49]
[1719108257840,13.8949,135.05,135.0,6.49]
[1719108258246,7.4054,135.04,134.97,100.0]
[1719108258420,7.4054,135.04,134.96,47.9332]
[1719108258421,21.764,135.02,134.95,100.0]
[1719108258615,29.1703,135.02,134.97,6.49]
[1719108259641,21.764,135.02,134.97,6.49]
[1719108263644,15.274,135.02,135.0,6.49]
[1719108265225,15.274,135.02,134.97,100.0]
[1719108265473,15.274,135.02,134.99,6.49]
[1719108265836,15.274,135.02,134.98,6.49]
[1719108266925,22.6803,135.02,134.95,100.0]
[1719108267125,29.1703,135.02,134.97,6.49]
[1719108268550,21.764,135.02,134.97,6.49]
[1719108271848,0.17,135.01,134.93,100.0]
[1719108272151,0.34,135.01,134.97,6.49]
[1719108275950,7.4079,134.99,134.92,21.9732]
[1719108276130,6.49,135.0,134.92,15.6026]
[1719108276131,13.8977,135.0,134.92,15.6026]
[1719108276330,0.17,134.99,134.95,6.49]
[1719108276546,6.66,134.99,134.94,6.49]
[1719108277055,6.66,134.99,134.91,100.0]
[1719108277249,6.66,134.99,134.94,6.49]
[1719108277550,6.66,134.99,134.91,100.0]
[1719108277855,6.66,134.98,134.93,6.49]
[1719108281142,22.6468,134.98,134.91,100.0]
[1719108281648,22.6468,134.98,134.92,6.49]
[1719108281855,6.49,134.97,134.92,6.49]
[1719108282238,22.6468,134.98,134.92,6.49]
[1719108282441,22.6468,134.98,134.93,6.49]
[1719108282856,16.1568,134.98,134.94,6.49]
[1719108284158,16.1568,134.98,134.91,100.0]
[1719108284376,22.6468,134.98,134.93,6.49]
[1719108286466,16.1568,134.98,134.93,6.49]
[1719108286673,15.9868,134.98,134.94,6.49]
[1719108287379,15.9868,134.98,134.91,100.0]
[1719108287560,15.9868,134.98,134.94,6.49]
[1719108288265,15.9868,134.98,134.95,6.49]
[1719108288789,15.9868,134.98,134.96,6.49]
[1719108290993,15.9868,134.98,134.95,6.49]
[1719108291163,15.9868,134.98,134.93,100.0]
[1719108291364,15.9868,134.98,134.95,6.49]
[1719108291971,23.3953,134.98,134.95,6.49]
[1719108292481,15.9868,134.98,134.95,6.49]
[1719108293880,15.9868,134.98,134.93,100.0]
[1719108294068,15.9868,134.98,134.95,6.49]
[1719108295593,23.3953,134.98,134.95,6.49]
[1719108300494,23.3953,134.98,134.91,100.0]
[1719108300495,6.49,134.97,134.91,100.0]
[1719108300687,6.49,134.97,134.92,6.49]
[1719108300889,7.4098,134.96,134.92,6.49]
[1719108302087,13.8998,134.96,134.92,6.49]
[1719108302803,7.4098,134.96,134.92,6.49]
[1719108303312,13.8993,134.97,134.92,6.49]
[1719108305410,6.0849,135.0,134.96,6.49]
[1719108305908,13.4924,135.0,134.93,100.0]
[1719108306088,7.4079,134.99,134.95,6.49]
[1719108306290,13.4925,135.0,134.95,6.49]
[1719108307608,23.1744,135.01,134.97,6.49]
[1719108307910,7.4074,135.0,134.96,6.49]
[1719108308915,13.8974,135.0,134.95,6.49]
[1719108309682,6.0353,135.03,134.96,100.0]
[1719108309892,21.9173,135.04,134.99,6.49]
[1719108310496,15.4273,135.04,134.98,100.0]
[1719108310819,15.4273,135.04,135.0,6.49]
[1719108314020,22.8325,135.04,135.0,6.49]
[1719108314401,7.4045,135.06,134.98,122.8139]
[1719108314597,13.77796132,135.07,135.02,6.49]
[1719108314598,12.5253,135.07,135.02,6.49]
[1719108314912,7.4042,135.06,135.02,6.49]
[1719108316820,7.4042,135.06,135.0,100.0]
[1719108317117,7.4042,135.06,135.02,6.49]
[1719108317606,13.8942,135.06,135.0,100.0]
[1719108317915,13.8942,135.06,135.01,6.49]
[1719108318105,6.49,135.05,135.0,6.49]
[1719108318422,13.8942,135.06,135.01,6.49]
[1719108318807,6.3753,135.07,135.0,100.0]
[1719108319000,6.3753,135.07,135.03,6.49]
[1719108319513,15.4273,135.08,135.02,100.0]
[1719108319710,15.4273,135.08,135.05,6.49]
[1719108320518,14.4273,135.08,135.05,6.49]
[1719108320900,7.4021,135.1,135.05,6.49]
[1719108321121,13.8921,135.1,135.05,6.49]
[1719108321313,7.4021,135.1,135.06,6.49]
[1719108322605,7.4026,135.09,135.04,100.0]
[1719108322808,13.8926,135.09,135.04,106.49]
[1719108323516,13.8926,135.09,135.04,6.49]
[1719108323719,13.8934,135.08,135.03,6.49]
[1719108323893,13.8934,135.08,135.02,106.49]
[1719108325823,6.49,135.08,135.03,6.49]
[1719108327031,6.49,135.08,135.02,100.0]
[1719108327193,6.49,135.08,135.03,6.49]
[1719108327943,16.1127,135.07,134.98,122.8139]
[1719108328221,6.49,135.05,134.98,100.0]
[1719108328526,6.49,135.04,134.99,6.49]
[1719108328907,6.49,135.05,135.0,6.49]
[1719108333725,6.5974,135.06,135.01,6.49]
[1719108333929,6.5974,135.06,135.02,6.49]
[1719108334231,16.1127,135.07,135.03,6.49]
[1719108335924,16.1127,135.07,135.04,6.49]
[1719108338135,16.1127,135.07,135.02,100.0]
[1719108338434,16.1127,135.07,135.03,6.49]
[1719108339733,20.49,135.09,135.04,6.49]
[1719108339908,14.0,135.09,135.05,6.49]
[1719108341132,7.403,135.08,135.04,6.49]
[1719108341643,7.403,135.08,135.03,6.49]
[1719108341809,13.893,135.08,135.03,6.49]
[1719108343012,13.8937,135.07,135.02,6.49]
[1719108343839,6.49,135.07,135.02,6.49]
[1719108346432,6.7674,135.09,135.0,100.0]
[1719108346617,6.49,135.06,135.0,106.49]
[1719108347018,6.49,135.05,135.0,106.49]
[1719108347533,7.7431,135.08,135.0,106.49]
[1719108347534,6.49,135.06,135.0,106.49]
[1719108347733,6.49,135.06,135.01,6.49]
[1719108351742,6.49,135.07,135.01,6.49]
[1719108351919,16.1127,135.1,135.04,6.49]
[1719108352120,22.6027,135.1,135.04,6.49]
[1719108352320,22.6027,135.1,135.05,6.49]
[1719108352539,16.1127,135.1,135.06,6.49]
[1719108356933,16.1127,135.1,135.0,100.0]
[1719108356934,0.17,135.09,135.05,6.49]
[1719108357142,6.66,135.09,135.04,6.49]
[1719108357361,6.49,135.08,135.03,6.49]
[1719108357530,6.49,135.07,135.02,106.49]
[1719108358750,7.7427,135.09,135.02,106.49]
[1719108359046,6.49,135.08,135.03,6.49]
[1719108361038,0.34,135.09,135.0,100.0]
[1719108361239,6.49,135.05,135.0,100.0]
[1719108361567,6.2873,135.08,135.02,100.0]
[1719108361744,6.2873,135.08,135.03,6.49]
[1719108361745,6.49,135.08,135.03,6.49]
[1719108361941,6.83,135.09,135.04,6.49]
[1719108362142,16.1127,135.1,135.04,106.49]
[1719108362342,22.6027,135.1,135.05,6.49]
[1719108362655,22.6027,135.1,135.06,6.49]
[1719108362955,16.1127,135.1,135.06,6.49]
[1719108363257,21.1013,135.12,135.06,6.49]
[1719108363430,20.1903,135.12,135.06,6.49]
[1719108363831,13.903,135.12,135.07,6.49]
[1719108364131,21.3039,135.12,135.07,6.49]
[1719108365256,21.3039,135.12,135.04,100.0]
[1719108365438,7.4014,135.11,135.06,6.49]
[1719108365643,14.0619,135.1,135.04,100.0]
[1719108365843,14.0619,135.1,135.05,6.49]
[1719108367639,14.0619,135.1,135.0,100.0]
[1719108367640,14.0619,135.1,135.02,100.0]
[1719108367836,14.0619,135.1,135.04,6.49]
[1719108368049,7.4025,135.09,135.02,100.0]
[1719108368241,13.8925,135.09,135.04,6.49]
[1719108368446,6.49,135.09,135.04,6.49]
[1719108368851,6.66,135.1,135.04,106.49]
[1719108369052,0.17,135.11,135.05,6.49]
[1719108369237,6.49,135.1,135.05,6.49]
[1719108369953,6.83,135.11,135.05,6.49]
[1719108370444,14.2314,135.11,135.05,6.49]
[1719108370848,6.49,135.1,135.05,6.49]
[1719108371533,13.8921,135.1,135.02,100.0]
[1719108371740,6.83,135.09,135.04,6.49]
[1719108371949,6.83,135.09,135.03,6.49]
[1719108372338,0.34,135.09,135.05,6.49]
[1719108372654,0.17,135.09,135.05,6.49]
[1719108376651,23.61854635,135.12,135.05,6.49]
[1719108376944,30.10854635,135.12,135.07,6.49]
[1719108377140,7.413,135.12,135.07,6.49]
[1719108377365,21.304,135.12,135.04,100.0]
[1719108377569,13.8915,135.11,135.06,6.49]
[1719108377751,16.21955403,135.13,135.05,6.49]
[1719108377752,13.8919,135.1,135.05,6.49]
[1719108377946,13.8919,135.1,135.04,106.49]
[1719108378162,6.49,135.09,135.04,6.49]
[1719108378547,6.49,135.09,135.03,6.49]
[1719108380270,0.17,135.1,135.04,6.49]
[1719108380447,6.66,135.09,135.04,6.49]
[1719108381377,0.17,135.09,135.04,6.49]
[1719108381665,0.34,135.1,135.04,6.49]
[1719108381841,6.83,135.1,135.04,6.49]
[1719108382464,30.3288,135.09,135.02,100.0]
[1719108382673,6.66,135.08,135.02,106.49]
[1719108383353,6.66,135.08,135.02,6.49]
[1719108383970,0.17,135.08,135.03,6.49]
[1719108384164,6.83,135.08,135.03,6.49]
[1719108384761,0.34,135.08,135.04,6.49]